bitfinex/quotes_SOLUSD_20251208
["timestamp","ask_amount","ask_price","bid_price","bid_amount"]
[1765216928837,26.41316515,136.17,136.13,6.6728727]
[1765216929038,25.70316515,136.17,136.13,6.6728727]
[1765216929239,26.41316515,136.17,136.13,6.6728727]
[1765216930235,25.70316515,136.17,136.13,5.9928727]
[1765216930441,26.41316515,136.17,136.13,6.6728727]
[1765216931265,7.34376147,136.17,136.14,5.9928727]
[1765216931537,7.34376147,136.17,136.14,6.6728727]
[1765216931910,7.34376147,136.17,136.12,5.9928727]
[1765216931911,0.71,136.16,136.12,5.9928727]
[1765216932110,5.9928727,136.13,136.03,25.72961846]
[1765216932314,33.74694086,136.15,136.11,5.9928727]
[1765216932522,26.41694086,136.15,136.11,5.9928727]
[1765216932721,26.41694086,136.15,136.11,6.6728727]
[1765216933520,0.71,136.14,136.06,0.68]
[1765216933713,5.9928727,136.11,136.05,7.34980349]
[1765216933915,5.9928727,136.11,136.06,5.9928727]
[1765216934118,8.75,136.1,136.06,6.6728727]
[1765216934344,14.7428727,136.13,136.08,5.9928727]
[1765216934642,5.9928727,136.11,136.04,0.68]
[1765216934822,5.9928727,136.11,136.06,5.9928727]
[1765216935017,5.60569198,136.12,136.04,8.03045387]
[1765216935018,14.7428727,136.1,136.04,0.68]
[1765216935227,14.7428727,136.1,136.05,5.9928727]
[1765216935526,7.34861845,136.08,136.06,5.9928727]
[1765216935725,0.71,136.09,136.06,5.9928727]
[1765216935726,8.05824654,136.09,136.06,5.9928727]
[1765216936845,7.34824654,136.09,136.07,5.9928727]
[1765216937037,7.34824654,136.09,136.07,6.6728727]
[1765216937244,15.38774804,136.1,136.07,6.6728727]
[1765216937555,8.04,136.13,136.09,5.9928727]
[1765216937746,7.346459,136.12,136.09,5.9928727]
[1765216937921,7.346459,136.12,136.08,6.6728727]
[1765216938119,8.056459,136.12,136.08,6.6728727]
[1765216938324,25.71260651,136.12,136.06,7.34963099]
[1765216938635,0.71,136.11,136.07,5.9928727]
[1765216939142,25.71260651,136.12,136.08,6.6728727]
[1765216939337,26.42260651,136.12,136.08,6.6728727]
[1765216939539,7.346459,136.12,136.09,6.6728727]
[1765216939927,7.346459,136.12,136.09,5.9928727]
[1765216940130,0.71,136.11,136.08,5.9928727]
[1765216941054,25.71260651,136.12,136.08,6.6728727]
[1765216941233,26.37260651,136.12,136.08,6.6728727]
[1765216941958,7.346459,136.12,136.09,6.6928727]
[1765216942268,8.006459,136.12,136.09,0.7]
[1765216942428,8.006459,136.12,136.09,5.9928727]
[1765216942969,25.11880892,136.16,136.09,5.9928727]
[1765216942970,7.34376147,136.17,136.11,5.9928727]
[1765216943165,12.89817388,136.17,136.12,5.9928727]
[1765216943383,5.9928727,136.15,136.1,0.7]
[1765216943530,8.04,136.14,136.1,5.9928727]
[1765216943867,14.6928727,136.14,136.08,0.7]
[1765216944053,0.66,136.13,136.09,5.9928727]
[1765216944769,0.66,136.13,136.09,6.6928727]
[1765216944969,7.346459,136.12,136.09,5.9928727]
[1765216945179,7.346459,136.12,136.09,0.7]
[1765216945344,7.346459,136.12,136.1,5.9928727]
[1765216945775,7.346459,136.12,136.1,6.6928727]
[1765216946079,18.36287417,136.15,136.11,6.6928727]
[1765216946389,18.36287417,136.15,136.12,5.9928727]
[1765216946390,7.34508408,136.15,136.12,5.9928727]
[1765216946535,8.00508408,136.15,136.13,5.9928727]
[1765216946732,4.89610231,136.16,136.13,5.9928727]
[1765216946733,7.34452732,136.16,136.13,5.9928727]
[1765216946951,15.38396491,136.17,136.15,5.9928727]
[1765216947355,16.04396491,136.17,136.14,6.6928727]
[1765216947754,16.04396491,136.17,136.14,5.9928727]
[1765216948458,26.35830835,136.2,136.16,5.9928727]
[1765216948759,26.35830835,136.2,136.17,5.9928727]
[1765216948760,34.39830835,136.2,136.17,5.9928727]
[1765216949547,34.39830835,136.2,136.15,8.04476734]
[1765216949730,34.39830835,136.2,136.17,5.9928727]
[1765216949937,34.39830835,136.2,136.16,0.7]
[1765216950182,0.66,136.19,136.16,5.9928727]
[1765216950490,34.39830835,136.2,136.16,6.6928727]
[1765216950664,34.39830835,136.2,136.17,5.9928727]
[1765216951281,0.66,136.19,136.15,5.9928727]
[1765216952083,25.70127771,136.18,136.14,5.9928727]
[1765216952457,8.7,136.17,136.13,5.9928727]
[1765216952759,19.58773804,136.17,136.12,5.9928727]
[1765216953071,19.58773804,136.17,136.1,15.38743261]
[1765216953072,6.6528727,136.16,136.1,5.9928727]
[1765216953274,5.9928727,136.15,136.08,7.34830994]
[1765216953464,14.0328727,136.14,136.09,5.9928727]
[1765216953667,14.0328727,136.14,136.07,0.7]
[1765216953668,14.6928727,136.14,136.08,5.9928727]
[1765216953899,5.55781165,136.13,136.08,5.9928727]
[1765216954056,25.71260651,136.12,136.07,0.7]
[1765216954273,26.37260651,136.12,136.07,6.6928727]
[1765216954463,26.37260651,136.12,136.07,14.04202844]
[1765216954658,0.66,136.11,136.07,6.6928727]
[1765216955875,8.7,136.11,136.07,5.9928727]
[1765216956082,8.7,136.11,136.06,5.9928727]
[1765216956398,8.00753857,136.1,136.04,8.04]
[1765216956598,31.28190277,136.1,136.05,5.9928727]
[1765216956756,26.376385,136.1,136.07,5.9928727]
[1765216957392,7.34753857,136.1,136.07,6.6928727]
[1765216961096,6.6528727,136.09,136.04,6.6928727]
[1765216961274,11.5634945,136.09,136.04,6.6928727]
[1765216961596,5.5706218,136.09,136.05,6.6928727]
[1765216962097,0.66,136.08,136.04,5.9928727]
[1765216962301,5.5706218,136.09,136.05,6.6928727]
[1765216962669,0.66,136.08,136.05,5.9928727]
[1765216962975,7.34915852,136.07,136.04,5.9928727]
[1765216963862,7.34915852,136.07,136.04,6.6928727]
[1765216965294,7.34915852,136.07,136.04,0.7]
[1765216965500,7.34915852,136.07,136.04,6.6928727]
[1765216967271,0.66,136.06,136.03,5.9928727]
[1765216967471,8.00915852,136.07,136.03,6.6928727]
[1765216967679,26.38205482,136.07,136.03,6.6928727]
[1765216968091,26.38205482,136.07,136.04,5.9928727]
[1765216968276,8.00915852,136.07,136.05,5.9928727]
[1765216968483,7.34915852,136.07,136.05,5.9928727]
[1765216968773,7.34915852,136.07,136.05,0.7]
[1765216968972,7.34915852,136.07,136.06,5.9928727]
[1765216969187,4.90746273,136.08,136.06,5.9928727]
[1765216969379,7.34861689,136.09,136.07,6.6928727]
[1765216969713,26.42826393,136.11,136.08,6.6928727]
[1765216969714,12.25663477,136.1,136.08,6.6928727]
[1765216969878,7.34484024,136.15,136.09,6.6928727]
[1765216970072,7.34484024,136.15,136.12,5.9928727]
[1765216970272,8.00484024,136.15,136.12,5.9928727]
[1765216970698,8.00484024,136.15,136.1,0.7]
[1765216970901,4.91137127,136.16,136.1,0.7]
[1765216970902,26.36946025,136.14,136.1,0.7]
[1765216971269,26.36946025,136.14,136.11,5.9928727]
[1765216971470,0.67,136.13,136.1,6.6928727]
[1765216971809,0.67,136.13,136.1,5.9928727]
[1765216972188,7.34537975,136.14,136.12,5.9928727]
[1765216973172,0.67,136.13,136.11,5.9928727]
[1765216973480,0.67,136.13,136.1,5.9928727]
[1765216973681,5.9928727,136.11,136.05,0.67]
[1765216973906,5.9928727,136.1,136.05,5.9928727]
[1765216974094,5.58403008,136.1,136.05,5.9928727]
[1765216974289,0.67,136.09,136.05,5.9928727]
[1765216974689,0.67,136.09,136.05,6.6628727]
[1765216975005,0.67,136.09,136.04,5.9928727]
[1765216975177,39.77303729,136.08,136.02,5.9928727]
[1765216975379,4.91403008,136.07,136.02,5.9928727]
[1765216975697,11.57690278,136.07,136.02,5.9928727]
[1765216975883,0.67,136.06,136.02,5.9928727]
[1765216976089,6.6628727,136.06,136.01,5.9928727]
[1765216976290,6.6628727,136.06,136.01,6.6628727]
[1765216976497,0.67,136.05,136.01,5.9928727]
[1765216976690,8.80994492,136.06,136.02,5.9928727]
[1765216976890,4.91037789,136.05,136.02,5.9928727]
[1765216977212,7.35077918,136.04,136.02,5.9928727]
[1765216977515,26.39772713,136.04,136.0,8.04]
[1765216977690,0.67,136.03,136.0,14.0328727]
[1765216977890,0.67,136.03,136.0,5.9928727]
[1765216978928,0.67,136.03,135.99,6.6628727]
[1765216979207,0.67,136.03,135.97,31.70321404]
[1765216979208,7.35186002,136.02,135.97,31.70321404]
[1765216979407,7.35186002,136.02,135.99,5.9928727]
[1765216979619,26.40151007,136.02,135.99,5.9928727]
[1765216979783,0.67,136.01,135.95,16.308864]
[1765216979983,0.67,136.01,135.97,5.9928727]
[1765216980395,0.67,136.01,135.97,6.6628727]
[1765216980801,0.67,136.01,135.97,11.12051564]
[1765216981005,25.73151007,136.02,135.98,11.12051564]
[1765216981210,26.40151007,136.02,135.98,11.12051564]
[1765216982015,0.67,136.01,135.98,10.45051564]
[1765216982192,0.67,136.01,135.96,0.67]
[1765216982392,0.67,136.01,135.97,10.45051564]
[1765216982612,19.26046056,136.0,135.95,10.45051564]
[1765216982795,19.26046056,136.0,135.94,11.32051564]
[1765216982997,0.67,135.99,135.94,11.32051564]
[1765216983202,15.41252437,136.01,135.98,10.45051564]
[1765216983708,16.08252437,136.01,135.98,10.45051564]
[1765216984611,43.44591321,136.04,136.0,10.45051564]
[1765216984820,15.41096443,136.04,136.01,10.45051564]
[1765216985004,15.41096443,136.04,135.97,8.01440975]
[1765216985005,9.50994492,136.03,135.97,8.01440975]
[1765216985320,0.7,136.02,135.98,10.45051564]
[1765216985517,7.35240055,136.01,135.97,0.66]
[1765216985699,8.05240055,136.01,135.98,10.45051564]
[1765216986421,7.35131956,136.03,136.0,10.45051564]
[1765216986719,15.41099012,136.04,136.0,10.45051564]
[1765216986920,9.50994492,136.03,135.97,8.01455165]
[1765216987218,33.78793807,136.04,136.0,10.45051564]
[1765216987418,33.78793807,136.04,136.01,10.45051564]
[1765216987610,8.05049922,136.05,136.02,10.45051564]
[1765216987810,8.05049922,136.05,136.01,10.45051564]
[1765216988013,26.42609642,136.05,136.01,10.45051564]
[1765216988226,7.35007592,136.06,136.04,10.45051564]
[1765216988533,7.35007592,136.06,136.02,0.66]
[1765216988534,8.05007592,136.06,136.02,0.66]
[1765216988723,8.05007592,136.06,136.03,10.45051564]
[1765216989027,8.05007592,136.06,136.04,10.45051564]
[1765216989214,7.35007592,136.06,136.04,10.45051564]
[1765216989412,7.34920075,136.07,136.05,10.45051564]
[1765216989824,8.04920075,136.07,136.02,0.66]
[1765216990032,0.7,136.06,136.02,10.45051564]
[1765216990210,8.06,136.05,136.02,10.45051564]
[1765216990728,8.06,136.05,136.03,10.45051564]
[1765216990910,0.7,136.06,136.03,10.45051564]
[1765216991113,33.78209705,136.07,136.04,10.45051564]
[1765216991449,7.34881214,136.08,136.06,10.45051564]
[1765216991613,8.04881214,136.08,136.06,10.45051564]
[1765216991930,8.80994492,136.11,136.07,10.45051564]
[1765216992118,0.7,136.12,136.09,10.45051564]
[1765216992322,8.04737705,136.11,136.09,10.45051564]
[1765216992514,8.04737705,136.11,136.08,10.45051564]
[1765216992711,7.34737705,136.11,136.09,10.45051564]
[1765216992912,16.8563907,136.13,136.1,10.45051564]
[1765216993224,25.71124413,136.13,136.09,10.45051564]
[1765216993432,0.7,136.12,136.09,10.45051564]
[1765216993609,7.34699875,136.11,136.1,10.45051564]
[1765216993809,7.34666024,136.12,136.1,10.45051564]
[1765216994238,8.04666024,136.12,136.1,10.45051564]
[1765216995040,0.7,136.11,136.08,10.45051564]
[1765216995238,8.76,136.11,136.09,10.45051564]
[1765216995441,26.41280775,136.12,136.09,10.45051564]
[1765216996536,0.7,136.11,136.05,0.66]
[1765216996839,5.60433293,136.11,136.08,10.45051564]
[1765216997129,0.7,136.11,136.08,10.45051564]
[1765216997341,5.60734606,136.11,136.08,10.45051564]
[1765216997549,7.34807847,136.09,136.08,10.45051564]
[1765216997912,7.34807847,136.09,136.06,10.45051564]
[1765216997913,8.04807847,136.09,136.06,10.45051564]
[1765216998130,0.7,136.08,136.05,10.45051564]
[1765216998414,16.86994492,136.07,136.01,8.06]
[1765216998633,16.86994492,136.07,136.04,10.45051564]
[1765216998830,17.56994492,136.07,136.04,10.45051564]
[1765216999550,7.34969866,136.06,136.04,11.11051564]
[1765216999843,7.34969866,136.06,136.04,10.45051564]
[1765217000045,15.40938186,136.07,136.04,11.11051564]
[1765217000531,15.40938186,136.07,136.04,10.45051564]
[1765217000723,0.7,136.06,136.03,10.45051564]
[1765217001738,7.35023888,136.05,136.01,10.45051564]
[1765217001938,25.72583608,136.05,136.01,10.45051564]
[1765217002240,0.7,136.04,136.01,10.45051564]
[1765217003143,7.35131956,136.03,136.01,10.45051564]
[1765217004052,0.7,136.02,135.97,0.71]
[1765217004228,0.7,136.02,135.98,10.45051564]
[1765217004624,0.7,136.02,135.97,0.71]
[1765217004817,16.86994492,136.01,135.96,10.45051564]
[1765217005143,4.90434258,136.0,135.96,10.45051564]
[1765217005315,7.35348187,135.99,135.96,10.45051564]
[1765217006234,7.35348187,135.99,135.96,11.16051564]
[1765217006460,7.35348187,135.99,135.96,10.45051564]
[1765217006633,8.76,135.98,135.94,10.65051564]
[1765217006934,8.76,135.98,135.94,11.36051564]
[1765217007446,8.06,136.0,135.95,0.71]
[1765217007622,12.96240555,136.0,135.97,10.45051564]
[1765217007943,8.06,136.0,135.99,10.45051564]
[1765217008242,15.41204143,136.02,135.99,10.45051564]
[1765217008443,16.11204143,136.02,135.99,10.45051564]
[1765217008644,15.41204143,136.02,135.99,10.45051564]
[1765217008824,15.41204143,136.02,135.94,25.94651473]
[1765217008825,15.41204143,136.02,136.0,11.16051564]
[1765217009023,15.41204143,136.02,136.0,10.45051564]
[1765217009353,8.06,136.02,136.0,10.45051564]
[1765217009644,7.35137068,136.03,136.01,10.45051564]
[1765217009942,7.35137068,136.03,136.0,11.16051564]
[1765217010556,15.41095751,136.04,136.01,11.16051564]
[1765217010859,8.06,136.04,136.02,11.16051564]
[1765217011155,15.4108966,136.04,136.01,10.45051564]
[1765217011315,15.4108966,136.04,136.01,11.16051564]
[1765217012324,0.7,136.03,135.99,10.45051564]
[1765217012521,0.7,136.03,135.98,10.45051564]
[1765217012742,0.7,136.03,135.99,10.45051564]
[1765217012938,0.7,136.03,135.99,0.71]
[1765217013122,33.78784455,136.04,136.01,10.45051564]
[1765217013441,34.48784455,136.04,136.01,10.45051564]
[1765217014033,15.4108966,136.04,136.02,10.45051564]
[1765217014225,15.4108966,136.04,136.01,11.16051564]
[1765217014646,16.1108966,136.04,136.01,11.16051564]
[1765217014944,15.4108966,136.04,135.99,8.06332106]
[1765217015128,16.1108966,136.04,136.01,10.45051564]
[1765217016427,33.78784455,136.04,135.96,34.69625723]
[1765217016628,0.7,136.03,135.99,10.45051564]
[1765217017033,0.7,136.03,136.0,11.16051564]
[1765217017361,8.80994492,136.02,135.97,10.45051564]
[1765217017565,8.06,136.01,135.97,10.45051564]
[1765217017725,8.76,136.01,135.97,10.45051564]
[1765217017930,7.35294117,136.0,135.97,10.45051564]
[1765217018335,8.05294117,136.0,135.97,10.45051564]
[1765217018857,26.43529411,136.0,135.97,10.45051564]
[1765217019062,26.43529411,136.0,135.96,0.71]
[1765217019229,26.43529411,136.0,135.97,10.45051564]
[1765217019839,25.73529411,136.0,135.96,10.45051564]
[1765217020041,5.6128569,135.99,135.94,8.26597219]
[1765217020245,8.06,135.98,135.94,10.65051564]
[1765217020445,13.6728569,135.98,135.94,10.65051564]
[1765217020759,0.7,135.97,135.94,10.65051564]
[1765217021164,0.7,135.97,135.94,0.2]
[1765217021675,5.6096786,135.97,135.94,0.2]
[1765217022043,8.05510444,135.96,135.94,0.2]
[1765217022357,16.86994492,135.95,135.94,0.2]
[1765217022535,17.56994492,135.95,135.94,0.2]
[1765217022736,22.48205861,135.95,135.94,0.2]
[1765217024042,29.83770406,135.95,135.94,0.2]
[1765217026162,20.32775914,135.95,135.94,0.2]
[1765217026576,15.41564545,135.95,135.94,0.2]
[1765217027076,10.45051564,135.92,135.9,0.2]
[1765217027239,8.06,135.91,135.9,0.2]
[1765217028179,15.41781031,135.91,135.9,0.2]
[1765217028337,8.06,135.91,135.9,11.36051564]
[1765217028630,15.41715198,135.93,135.9,11.36051564]
[1765217028835,15.41715198,135.93,135.91,0.71]
[1765217029035,15.41715198,135.93,135.9,11.36051564]
[1765217029338,15.41715198,135.93,135.91,0.71]
[1765217029552,15.41715198,135.93,135.9,11.36051564]
[1765217030856,15.41715198,135.93,135.9,0.91]
[1765217031779,9.51994492,135.92,135.9,0.2]
[1765217031939,8.06,135.91,135.9,0.2]
[1765217032334,19.22051564,135.91,135.9,0.2]
[1765217032584,17.57994492,135.91,135.9,0.2]
[1765217032947,16.86994492,135.92,135.9,0.2]
[1765217033450,7.35781031,135.91,135.9,0.2]
[1765217036453,16.86994492,135.92,135.9,11.34051564]
[1765217036454,15.41749285,135.92,135.9,11.34051564]
[1765217036657,15.41749285,135.92,135.91,10.45051564]
[1765217036974,15.41749285,135.92,135.9,11.34051564]
[1765217038245,8.06,135.92,135.9,11.34051564]
[1765217038468,8.06,135.92,135.91,10.45051564]
[1765217039275,15.41726898,135.92,135.91,10.45051564]
[1765217040073,15.41726898,135.92,135.9,0.2]
[1765217040578,9.50994492,135.91,135.9,0.2]
[1765217040880,8.80994492,135.91,135.9,0.2]
[1765217042074,16.86775523,135.91,135.9,0.2]
[1765217042464,16.16775523,135.91,135.9,0.2]
[1765217042864,15.4172836,135.92,135.9,6.87010688]
[1765217043060,15.4172836,135.92,135.91,6.01010688]
[1765217043370,15.4172836,135.92,135.9,6.87010688]
[1765217045878,15.5200518,135.91,135.9,0.2]
[1765217046052,14.40989504,135.91,135.9,0.2]
[1765217047078,9.50994492,135.91,135.9,0.2]
[1765217047303,12.25786123,135.91,135.9,0.86]
[1765217047455,12.25786123,135.91,135.9,0.2]
[1765217049354,4.90005092,135.91,135.9,0.2]
[1765217049705,12.95786123,135.91,135.9,0.2]
[1765217049984,24.2923449,135.91,135.9,0.2]
[1765217050679,27.78053452,135.91,135.9,0.2]
[1765217051464,21.76780615,135.91,135.9,0.2]
[1765217051781,27.78053452,135.91,135.9,0.2]
[1765217051968,21.76780615,135.91,135.9,0.2]
[1765217052169,27.78053452,135.91,135.9,0.2]
[1765217052569,21.76780615,135.91,135.9,0.2]
[1765217052907,12.25786123,135.91,135.9,0.2]
[1765217053069,20.31786123,135.91,135.9,0.86]
[1765217054190,15.41781031,135.91,135.9,0.86]
[1765217054890,8.06,135.91,135.9,0.86]
[1765217055092,7.35697862,135.93,135.9,6.87272837]
[1765217055297,15.41632627,135.94,135.91,0.66]
[1765217055597,15.41632627,135.94,135.91,6.67272837]
[1765217056091,34.50679265,135.94,135.9,0.2]
[1765217056299,34.50679265,135.94,135.9,0.86]
[1765217056968,34.50679265,135.94,135.9,0.2]
[1765217057163,33.80679265,135.94,135.91,0.66]
[1765217057467,15.41632627,135.94,135.91,6.67272837]
[1765217057795,15.41632627,135.94,135.92,6.01272837]
[1765217057963,8.06,135.96,135.93,6.01272837]
[1765217058161,12.97088433,135.96,135.93,6.67272837]
[1765217058976,12.97088433,135.96,135.93,6.01272837]
[1765217059285,12.97088433,135.96,135.94,0.66]
[1765217059490,4.91088433,135.96,135.95,6.01272837]
[1765217059870,4.91088433,135.96,135.95,6.67272837]
[1765217060283,12.26598877,135.96,135.95,0.66]
[1765217060589,4.91088433,135.96,135.95,6.67272837]
[1765217060794,4.91088433,135.96,135.94,6.01272837]
[1765217061364,4.91088433,135.96,135.94,6.70272837]
[1765217061791,4.91088433,135.96,135.93,6.01272837]
[1765217062162,4.91088433,135.96,135.93,6.70272837]
[1765217062370,7.35564545,135.95,135.93,6.70272837]
[1765217063489,4.91088433,135.96,135.94,6.70272837]
[1765217064072,4.91088433,135.96,135.95,0.69]
[1765217064295,4.91088433,135.96,135.95,6.70272837]
[1765217064788,12.26598877,135.96,135.95,6.70272837]
[1765217064977,4.91088433,135.96,135.95,6.70272837]
[1765217065387,15.41466196,135.97,135.95,6.70272837]
[1765217065696,15.41466196,135.97,135.96,6.70272837]
[1765217065874,20.34985801,135.97,135.96,0.69]
[1765217066790,20.34985801,135.97,135.94,6.01272837]
[1765217066791,8.80994492,135.96,135.91,0.69]
[1765217066995,6.01272837,135.94,135.9,0.2]
[1765217067178,8.06,135.93,135.9,0.2]
[1765217067382,12.99519605,135.93,135.9,0.89]
[1765217067891,12.99519605,135.93,135.91,0.69]
[1765217068484,7.35726898,135.92,135.9,0.89]
[1765217069002,7.35726898,135.92,135.9,0.2]
[1765217069508,7.35726898,135.92,135.9,0.89]
[1765217070608,4.9333164,135.92,135.9,0.89]
[1765217070814,4.9333164,135.92,135.9,0.2]
[1765217071020,4.9333164,135.92,135.9,0.89]
[1765217071375,4.9333164,135.92,135.91,0.69]
[1765217072799,12.29087447,135.92,135.9,0.2]
[1765217072980,12.29087447,135.92,135.9,0.89]
[1765217073782,18.30360284,135.92,135.9,0.2]
[1765217074089,28.52568647,135.91,135.9,0.2]
[1765217074411,12.99301318,135.91,135.9,0.2]
[1765217074773,20.35082349,135.91,135.9,0.2]
[1765217077404,12.99301318,135.91,135.9,0.89]
[1765217077603,20.35082349,135.91,135.9,0.2]
[1765217082681,20.35082349,135.91,135.9,0.89]
[1765217083505,4.93301318,135.91,135.9,0.89]
[1765217083711,4.93301318,135.93,135.9,10.77281478]
[1765217083885,4.93301318,135.96,135.91,3.21446306]
[1765217084079,4.93301318,135.95,135.91,3.21446306]
[1765217084414,4.93301318,135.94,135.92,3.21446306]
[1765217084582,4.93301318,135.95,135.92,10.57123605]
[1765217084781,4.93301318,135.95,135.93,0.69]
[1765217085409,12.288793,135.95,135.93,0.69]
[1765217085605,7.35577982,135.95,135.93,0.69]
[1765217086110,4.93942497,135.95,135.93,0.69]
[1765217086512,12.29467461,135.96,135.92,2.52446306]
[1765217086889,4.93942497,135.96,135.93,2.52446306]
[1765217087099,15.41462775,135.97,135.93,2.52446306]
[1765217087299,7.35411314,135.98,135.94,2.52446306]
[1765217087513,12.29338942,135.98,135.94,2.52446306]
[1765217088406,12.29338942,135.98,135.94,9.88050583]
[1765217088610,12.29338942,135.98,135.95,0.69]
[1765217088990,4.93927628,135.98,135.96,2.52446306]
[1765217089187,7.35307358,136.0,135.96,2.52446306]
[1765217089390,12.28962947,136.0,135.96,3.21446306]
[1765217089993,7.35307358,136.0,135.96,3.21446306]
[1765217090195,7.35307358,136.0,135.96,10.56925777]
[1765217090393,7.35307358,136.0,135.97,0.69]
[1765217090589,15.41259455,136.01,135.97,3.21446306]
[1765217091008,15.41259455,136.01,135.97,2.52446306]
[1765217091213,15.41259455,136.01,135.98,0.7]
[1765217092103,8.06,136.01,135.98,0.7]
[1765217092311,15.41240515,136.01,135.98,0.7]
[1765217093708,15.41240515,136.01,135.96,9.8795675]
[1765217093918,15.41240515,136.01,135.97,2.52446306]
[1765217094217,15.41240515,136.01,135.97,3.22446306]
[1765217094419,15.41240515,136.01,135.95,42.75741491]
[1765217094420,17.93686821,136.01,135.95,31.72438191]
[1765217094716,3.21446306,136.0,135.95,34.24884497]
[1765217094899,3.21446306,136.0,135.95,10.58446306]
[1765217095101,3.21446306,136.0,135.95,11.28446306]
[1765217095411,3.21446306,136.0,135.95,18.64010532]
[1765217095992,7.35348187,135.99,135.95,18.64010532]
[1765217096908,0.69,135.98,135.95,8.06]
[1765217097219,25.73718655,135.99,135.94,9.88060509]
[1765217097417,26.42718655,135.99,135.94,9.88060509]
[1765217097616,0.69,135.98,135.93,26.88981604]
[1765217097792,7.35348187,135.99,135.94,9.88061934]
[1765217097993,7.35348187,135.99,135.95,2.52446306]
[1765217098211,7.35348187,135.99,135.95,3.22446306]
[1765217098415,0.69,135.98,135.94,7.35607417]
[1765217098716,0.69,135.98,135.94,9.88053723]
[1765217098899,7.35348187,135.99,135.94,9.88053723]
[1765217099105,12.97535173,135.99,135.94,10.58053723]
[1765217099726,4.93186986,135.99,135.95,9.87998671]
[1765217100021,4.93186986,136.0,135.97,2.52446306]
[1765217100410,4.93186986,136.0,135.98,3.18446306]
[1765217100620,7.35132293,136.03,135.99,2.52446306]
[1765217100804,12.2817479,136.03,135.99,3.93736198]
[1765217101002,4.93042497,136.03,136.01,3.93736198]
[1765217101215,7.35006449,136.06,136.01,3.93736198]
[1765217101619,8.04006449,136.06,136.02,0.66]
[1765217101818,0.1,136.08,136.04,3.93736198]
[1765217102129,0.1,136.08,136.07,3.93736198]
[1765217102518,0.1,136.08,136.07,4.59736198]
[1765217102909,0.1,136.09,136.08,16.308864]
[1765217103109,0.1,136.09,136.08,32.90358796]
[1765217103309,4.91838948,136.16,136.08,32.90358796]
[1765217103514,4.91838948,136.16,136.13,3.93736198]
[1765217103733,4.91838948,136.16,136.13,4.59736198]
[1765217103930,7.34390035,136.17,136.14,4.59736198]
[1765217104841,7.34268301,136.19,136.16,10.42158943]
[1765217105038,27.10597308,136.2,136.14,7.34512382]
[1765217105039,15.40224176,136.2,136.17,10.42158943]
[1765217105210,16.09224176,136.2,136.15,11.08158943]
[1765217105411,16.09224176,136.2,136.16,10.42158943]
[1765217105707,44.86919095,136.2,136.15,11.08158943]
[1765217105935,0.69,136.19,136.15,11.08158943]
[1765217106135,7.3432222,136.18,136.15,11.08158943]
[1765217106410,7.3432222,136.18,136.16,10.42158943]
[1765217107038,19.14296582,136.22,136.17,11.08158943]
[1765217107217,18.45296582,136.22,136.19,10.42158943]
[1765217107420,25.69572616,136.21,136.18,10.42158943]
[1765217108033,8.03171398,136.21,136.18,10.42158943]
[1765217108228,8.03171398,136.21,136.17,0.66]
[1765217108430,8.03171398,136.21,136.18,10.42158943]
[1765217108638,11.11158943,136.2,136.14,10.42158943]
[1765217108836,10.42158943,136.19,136.14,10.42158943]
[1765217109020,11.11158943,136.19,136.14,10.42158943]
[1765217109338,0.69,136.18,136.14,10.42158943]
[1765217109509,0.69,136.18,136.14,11.08158943]
[1765217110040,7.34376147,136.17,136.14,11.08158943]
[1765217110335,34.79045343,136.2,136.15,10.42158943]
[1765217110516,25.69964137,136.19,136.15,11.08158943]
[1765217110713,26.38964137,136.19,136.15,10.42158943]
[1765217111615,26.38964137,136.19,136.14,10.42158943]
[1765217111616,36.1212308,136.19,136.14,10.42158943]
[1765217111817,19.92153435,136.18,136.13,10.42158943]
[1765217112015,36.12475458,136.17,136.12,18.46158943]
[1765217112331,36.81475458,136.17,136.12,18.46158943]
[1765217112537,0.69,136.16,136.12,18.46158943]
[1765217113039,11.11158943,136.16,136.12,8.04]
[1765217113218,0.69,136.16,136.12,18.46158943]
[1765217113414,0.69,136.15,136.12,8.04]
[1765217113735,0.69,136.16,136.12,18.46158943]
[1765217113928,8.03446793,136.16,136.12,18.46158943]
[1765217114242,37.50886808,136.19,136.14,10.42158943]
[1765217114418,8.80994492,136.17,136.1,10.42158943]
[1765217114614,10.42158943,136.14,136.09,27.39045343]
[1765217114840,8.73,136.16,136.12,10.42158943]